[Event "Live Chess"]
[Site "Chess.com"]
[Date "2023.05.20"]
[Round "-"]
[White "xx_blindpuffin_xx"]
[Black "Nazar_777"]
[Result "1-0"]
[WhiteElo "2185"]
[BlackElo "1608"]
[TimeControl "300"]
[EndTime "14:10:17 PDT"]
[Termination "xx_blindpuffin_xx won by checkmate"]

1. d4 {[%clk 0:04:56.4]} 1... e6 {[%clk 0:04:49.5]} 2. Bf4 {[%clk 0:04:55.7]}
2... a6 {[%clk 0:04:49.1]} 3. e3 {[%clk 0:04:54.9]} 3... h5 {[%clk 0:04:48.5]}
4. Nf3 {[%clk 0:04:53.6]} 4... Nf6 {[%clk 0:04:47.2]} 5. h3 {[%clk 0:04:51.1]}
5... c5 {[%clk 0:04:46.4]} 6. Be2 {[%clk 0:04:50.1]} 6... c4 {[%clk 0:04:45.4]}
7. Bxc4 {[%clk 0:04:48.3]} 7... b5 {[%clk 0:04:44.2]} 8. Be2 {[%clk 0:04:47.1]}
8... Nc6 {[%clk 0:04:43.2]} 9. O-O {[%clk 0:04:46.1]} 9... Be7 {[%clk
0:04:42.4]} 10. c4 {[%clk 0:04:45.2]} 10... b4 {[%clk 0:04:40.2]} 11. d5 {[%clk
0:04:42.6]} 11... Nb8 {[%clk 0:04:38.9]} 12. d6 {[%clk 0:04:41.1]} 12... Bf8
{[%clk 0:04:36.9]} 13. a3 {[%clk 0:04:37.2]} 13... bxa3 {[%clk 0:04:35.4]} 14.
Rxa3 {[%clk 0:04:34.7]} 14... Nc6 {[%clk 0:04:34.7]} 15. c5 {[%clk 0:04:31.3]}
15... a5 {[%clk 0:04:33.7]} 16. Nc3 {[%clk 0:04:23.9]} 16... Bb7 {[%clk
0:04:31.2]} 17. Nb5 {[%clk 0:04:17.5]} 17... Nd5 {[%clk 0:04:29.8]} 18. Bc4
{[%clk 0:04:08.3]} 18... Ba6 {[%clk 0:04:23.1]} 19. Nc7+ {[%clk 0:03:58.1]}
19... Nxc7 {[%clk 0:04:21.2]} 20. dxc7 {[%clk 0:03:58]} 20... Qc8 {[%clk
0:04:19.8]} 21. Bxa6 {[%clk 0:03:55.9]} 21... Rxa6 {[%clk 0:04:18.4]} 22. Nd4
{[%clk 0:03:45.9]} 22... Bxc5 {[%clk 0:04:13]} 23. Rc3 {[%clk 0:03:44.5]} 23...
Bxd4 {[%clk 0:04:04.3]} 24. exd4 {[%clk 0:03:44.4]} 24... Nb4 {[%clk 0:03:55]}
25. Rg3 {[%clk 0:03:23.6]} 25... Rg8 {[%clk 0:03:48.5]} 26. Qxh5 {[%clk
0:03:21.7]} 26... Nd5 {[%clk 0:03:44.1]} 27. Be5 {[%clk 0:03:17.5]} 27... g6
{[%clk 0:03:28.5]} 28. Qh7 {[%clk 0:03:15.2]} 28... Rf8 {[%clk 0:03:21.3]} 29.
Bg7 {[%clk 0:03:08.6]} 29... Qxc7 {[%clk 0:03:09.9]} 30. Bxf8 {[%clk 0:03:06.3]}
30... Kxf8 {[%clk 0:03:08.8]} 31. h4 {[%clk 0:03:01.5]} 31... Ke7 {[%clk
0:03:06.9]} 32. Rf3 {[%clk 0:02:58.3]} 32... Nf6 {[%clk 0:03:04.4]} 33. Qg7
{[%clk 0:02:55.3]} 33... Ng4 {[%clk 0:02:28.3]} 34. Qxf7+ {[%clk 0:02:46.2]}
34... Kd6 {[%clk 0:02:26.4]} 35. Qf8+ {[%clk 0:02:44.7]} 35... Kd5 {[%clk
0:02:16.3]} 36. Rg3 {[%clk 0:02:43.2]} 36... Qxg3 {[%clk 0:01:27.6]} 37. fxg3
{[%clk 0:02:41.2]} 37... Ne3 {[%clk 0:01:26.7]} 38. Qc5+ {[%clk 0:02:39.4]}
38... Ke4 {[%clk 0:01:24.9]} 39. Rf4+ {[%clk 0:02:38.3]} 39... Kd3 {[%clk
0:01:22.9]} 40. Qc3+ {[%clk 0:02:37.9]} 40... Ke2 {[%clk 0:01:20.7]} 41. Rf2+
{[%clk 0:02:37.5]} 41... Kd1 {[%clk 0:01:16.5]} 42. Qd2# {[%clk 0:02:37.4]} 1-0

[Event "Live Chess"]
[Site "Chess.com"]
[Date "2023.05.20"]
[Round "-"]
[White "defenderalist"]
[Black "ACx04"]
[Result "1-0"]
[WhiteElo "1620"]
[BlackElo "415"]
[TimeControl "300"]
[EndTime "14:10:26 PDT"]
[Termination "defenderalist won by resignation"]

1. e4 {[%clk 0:04:58.3]} 1... e5 {[%clk 0:04:58.3]} 2. Nf3 {[%clk 0:04:57.9]}
2... Nc6 {[%clk 0:04:56.8]} 3. Bc4 {[%clk 0:04:56.5]} 3... Nf6 {[%clk
0:04:51.3]} 4. O-O {[%clk 0:04:55.6]} 4... h6 {[%clk 0:04:32.2]} 5. Nc3 {[%clk
0:04:53.4]} 5... a6 {[%clk 0:04:27.7]} 6. d4 {[%clk 0:04:52.2]} 6... exd4 {[%clk
0:04:25.9]} 7. Nxd4 {[%clk 0:04:50.8]} 7... Nxd4 {[%clk 0:04:25.1]} 8. Qxd4
{[%clk 0:04:49.7]} 8... Qe7 {[%clk 0:04:24.1]} 9. e5 {[%clk 0:04:45.7]} 9... Ng8
{[%clk 0:04:19]} 10. f4 {[%clk 0:04:44.5]} 10... d6 {[%clk 0:04:15.7]} 11. Nd5
{[%clk 0:04:43.1]} 11... dxe5 {[%clk 0:04:14.5]} 12. fxe5 {[%clk 0:04:26.2]}
12... Qe6 {[%clk 0:04:09.5]} 13. Nxc7+ {[%clk 0:04:23.6]} 13... Ke7 {[%clk
0:04:04.3]} 14. Nxe6 {[%clk 0:04:19.8]} 14... f5 {[%clk 0:04:03.4]} 15. exf6+
{[%clk 0:04:16.4]} 15... gxf6 {[%clk 0:04:02.5]} 16. Nxf8 {[%clk 0:04:14.9]}
16... h5 {[%clk 0:04:00.2]} 17. Ng6+ {[%clk 0:04:11.7]} 1-0

[Event "Live Chess"]
[Site "Chess.com"]
[Date "2023.05.20"]
[Round "-"]
[White "CheckThis4"]
[Black "friarnator"]
[Result "1-0"]
[WhiteElo "2550"]
[BlackElo "1997"]
[TimeControl "300"]
[EndTime "14:10:33 PDT"]
[Termination "CheckThis4 won on time"]

1. d4 {[%clk 0:04:56.5]} 1... Nf6 {[%clk 0:04:58.5]} 2. Nc3 {[%clk 0:04:54.7]}
2... d6 {[%clk 0:04:49.5]} 3. e4 {[%clk 0:04:53.5]} 3... g6 {[%clk 0:04:48.9]}
4. Be3 {[%clk 0:04:52.6]} 4... Bg7 {[%clk 0:04:48.2]} 5. Qd2 {[%clk 0:04:52.2]}
5... c6 {[%clk 0:04:47.2]} 6. f3 {[%clk 0:04:51.7]} 6... b5 {[%clk 0:04:45.6]}
7. Bh6 {[%clk 0:04:49.2]} 7... O-O {[%clk 0:04:43.1]} 8. h4 {[%clk 0:04:47.9]}
8... b4 {[%clk 0:04:41.1]} 9. Nce2 {[%clk 0:04:46.5]} 9... e5 {[%clk 0:04:39.4]}
10. h5 {[%clk 0:04:45.5]} 10... a5 {[%clk 0:04:21.4]} 11. Rd1 {[%clk 0:04:33]}
11... Qe7 {[%clk 0:04:03.2]} 12. Nh3 {[%clk 0:04:27.6]} 12... Bxh3 {[%clk
0:03:55.1]} 13. Rxh3 {[%clk 0:04:26]} 13... Nbd7 {[%clk 0:03:52.7]} 14. g4
{[%clk 0:04:23.6]} 14... Rfd8 {[%clk 0:03:45.2]} 15. Bxg7 {[%clk 0:04:19.3]}
15... Kxg7 {[%clk 0:03:42.5]} 16. Ng3 {[%clk 0:04:14.4]} 16... Qf8 {[%clk
0:02:54.5]} 17. Qg5 {[%clk 0:04:07.2]} 17... Kh8 {[%clk 0:02:44.9]} 18. hxg6
{[%clk 0:04:04.2]} 18... fxg6 {[%clk 0:02:42.9]} 19. Qxg6 {[%clk 0:04:02.6]}
19... exd4 {[%clk 0:02:19.5]} 20. g5 {[%clk 0:03:55.7]} 20... Qg8 {[%clk
0:02:06.6]} 21. Qf5 {[%clk 0:03:41.6]} 21... Ne8 {[%clk 0:01:16.8]} 22. Rxd4
{[%clk 0:03:37.7]} 22... Ne5 {[%clk 0:01:11.3]} 23. Nh5 {[%clk 0:03:20.7]} 23...
Ng7 {[%clk 0:01:06.8]} 24. Qf6 {[%clk 0:03:11.7]} 24... Rf8 {[%clk 0:00:55.5]}
25. Qxg7+ {[%clk 0:03:06.8]} 25... Qxg7 {[%clk 0:00:55.4]} 26. Nxg7 {[%clk
0:03:05.7]} 26... Kxg7 {[%clk 0:00:55.3]} 27. Be2 {[%clk 0:02:56.2]} 27... Rad8
{[%clk 0:00:47.3]} 28. b3 {[%clk 0:02:51.4]} 28... Ng6 {[%clk 0:00:45.8]} 29.
Rh2 {[%clk 0:02:44.6]} 29... Nf4 {[%clk 0:00:43.3]} 30. Kd2 {[%clk 0:02:43]}
30... Ne6 {[%clk 0:00:41.4]} 31. Rd3 {[%clk 0:02:41.3]} 31... Nc5 {[%clk
0:00:40.5]} 32. Rd4 {[%clk 0:02:38.3]} 32... Ne6 {[%clk 0:00:39.4]} 33. Rd3
{[%clk 0:02:37.7]} 33... Nc5 {[%clk 0:00:38.1]} 34. Re3 {[%clk 0:02:37]} 34...
d5 {[%clk 0:00:37.1]} 35. exd5 {[%clk 0:02:32.9]} 35... Rxd5+ {[%clk 0:00:36.8]}
36. Ke1 {[%clk 0:02:28.2]} 36... Rxg5 {[%clk 0:00:33.1]} 37. Re7+ {[%clk
0:02:25.9]} 37... Kg6 {[%clk 0:00:32.8]} 38. Rhxh7 {[%clk 0:02:22.6]} 38... Rf6
{[%clk 0:00:25.4]} 39. f4 {[%clk 0:02:07.9]} 39... Rd5 {[%clk 0:00:18.3]} 40.
Rhg7+ {[%clk 0:01:45.6]} 40... Kf5 {[%clk 0:00:17.8]} 41. Rg4 {[%clk 0:01:37.3]}
41... Ne6 {[%clk 0:00:13.9]} 42. Bf3 {[%clk 0:01:22.3]} 42... Nxf4 {[%clk
0:00:09.5]} 43. Rxf4+ {[%clk 0:01:14.7]} 43... Kxf4 {[%clk 0:00:08.2]} 44. Bxd5
{[%clk 0:01:14.6]} 44... cxd5 {[%clk 0:00:08]} 45. Kd2 {[%clk 0:01:12.2]} 45...
Ra6 {[%clk 0:00:05.6]} 46. Kd3 {[%clk 0:01:10.3]} 46... Kf5 {[%clk 0:00:05.1]}
47. Kd4 {[%clk 0:01:09.4]} 47... Kf6 {[%clk 0:00:04.8]} 48. Re8 {[%clk
0:01:07.2]} 48... Rc6 {[%clk 0:00:04.2]} 49. Re2 {[%clk 0:01:05.1]} 1-0

[Event "Live Chess"]
[Site "Chess.com"]
[Date "2023.05.20"]
[Round "-"]
[White "Doge_Dandolo"]
[Black "MrBlond89"]
[Result "1-0"]
[WhiteElo "2032"]
[BlackElo "1420"]
[TimeControl "300"]
[EndTime "14:10:36 PDT"]
[Termination "Doge_Dandolo won on time"]

1. Nf3 {[%clk 0:04:57.9]} 1... Nc6 {[%clk 0:04:57.1]} 2. e4 {[%clk 0:04:51.3]}
2... e5 {[%clk 0:04:54.2]} 3. Bc4 {[%clk 0:04:46]} 3... Bc5 {[%clk 0:04:52.3]}
4. b4 {[%clk 0:04:44.4]} 4... Bb6 {[%clk 0:04:50.9]} 5. O-O {[%clk 0:04:36.5]}
5... d6 {[%clk 0:04:45.5]} 6. c3 {[%clk 0:04:32.2]} 6... Nf6 {[%clk 0:04:42.8]}
7. a4 {[%clk 0:04:30.4]} 7... a6 {[%clk 0:04:40.9]} 8. d3 {[%clk 0:04:25.4]}
8... O-O {[%clk 0:04:35.4]} 9. h3 {[%clk 0:04:24]} 9... Ne7 {[%clk 0:03:26.5]}
10. Bg5 {[%clk 0:04:16]} 10... Ng6 {[%clk 0:03:21.1]} 11. Kh2 {[%clk 0:04:08.8]}
11... h6 {[%clk 0:03:18.6]} 12. Bc1 {[%clk 0:03:57.7]} 12... Nf4 {[%clk
0:03:10.7]} 13. Nbd2 {[%clk 0:03:52.6]} 13... c6 {[%clk 0:02:42.4]} 14. Bb3
{[%clk 0:03:40.1]} 14... Nxd3 {[%clk 0:02:34.3]} 15. Qe2 {[%clk 0:03:31.4]}
15... Nf4 {[%clk 0:01:50]} 16. Qd1 {[%clk 0:03:23.1]} 16... Be6 {[%clk
0:01:33.6]} 17. Bxe6 {[%clk 0:03:19.2]} 17... fxe6 {[%clk 0:01:31.3]} 18. g3
{[%clk 0:03:16.7]} 18... Nd3 {[%clk 0:01:21.4]} 19. Qe2 {[%clk 0:03:14.7]} 19...
Nxf2 {[%clk 0:01:13.9]} 20. Rxf2 {[%clk 0:03:12.7]} 20... Bxf2 {[%clk
0:01:13.2]} 21. Qxf2 {[%clk 0:03:12.2]} 21... d5 {[%clk 0:01:10.8]} 22. Ra2
{[%clk 0:02:59.2]} 22... Nxe4 {[%clk 0:01:08]} 23. Nxe4 {[%clk 0:02:57.6]} 23...
dxe4 {[%clk 0:01:07.1]} 24. Rd2 {[%clk 0:02:55.3]} 24... Qc7 {[%clk 0:00:54.3]}
25. Qc5 {[%clk 0:02:44.2]} 25... exf3 {[%clk 0:00:47.1]} 26. Rf2 {[%clk
0:02:41.5]} 26... e4 {[%clk 0:00:36.7]} 27. Bf4 {[%clk 0:02:33.8]} 27... Qf7
{[%clk 0:00:31.5]} 28. Qc4 {[%clk 0:02:31.4]} 28... Rae8 {[%clk 0:00:28.2]} 29.
Qxe4 {[%clk 0:02:29.9]} 29... e5 {[%clk 0:00:26.9]} 30. Be3 {[%clk 0:02:27.3]}
30... Qb3 {[%clk 0:00:23.6]} 31. Bc5 {[%clk 0:02:24.7]} 31... Qxa4 {[%clk
0:00:19.2]} 32. Bxf8 {[%clk 0:02:22.3]} 32... Rxf8 {[%clk 0:00:19.1]} 33. Rxf3
{[%clk 0:02:21]} 33... Rxf3 {[%clk 0:00:16]} 34. Qxf3 {[%clk 0:02:19.9]} 34...
Qc2+ {[%clk 0:00:15.2]} 35. Kg1 {[%clk 0:02:18.8]} 35... Qc1+ {[%clk 0:00:14]}
36. Kf2 {[%clk 0:02:17.8]} 36... Qc2+ {[%clk 0:00:13.2]} 37. Ke1 {[%clk
0:02:14.5]} 37... Qc1+ {[%clk 0:00:11.1]} 38. Ke2 {[%clk 0:02:13.3]} 38... Qc2+
{[%clk 0:00:09.8]} 39. Ke1 {[%clk 0:02:07.3]} 39... Qc1+ {[%clk 0:00:03.7]} 40.
Qd1 {[%clk 0:02:06.4]} 40... Qxd1+ {[%clk 0:00:02.7]} 41. Kxd1 {[%clk 0:02:06]}
41... Kf7 {[%clk 0:00:02.5]} 42. Ke2 {[%clk 0:02:05.5]} 42... Ke6 {[%clk
0:00:01.4]} 43. Ke3 {[%clk 0:02:05.1]} 43... Kd5 {[%clk 0:00:00.9]} 44. Kd3
{[%clk 0:02:04]} 1-0

[Event "Live Chess"]
[Site "Chess.com"]
[Date "2023.05.20"]
[Round "-"]
[White "ItsNot_Jasper"]
[Black "ameetghasi100"]
[Result "1-0"]
[WhiteElo "1338"]
[BlackElo "2633"]
[TimeControl "300"]
[EndTime "14:10:41 PDT"]
[Termination "ItsNot_Jasper won by checkmate"]

1. d4 {[%clk 0:04:57.5]} 1... e5 {[%clk 0:04:59.9]} 2. dxe5 {[%clk 0:04:55.4]}
2... d6 {[%clk 0:04:59.5]} 3. exd6 {[%clk 0:04:54]} 3... Bxd6 {[%clk 0:04:59.4]}
4. Nf3 {[%clk 0:04:50.9]} 4... Nf6 {[%clk 0:04:59]} 5. Nc3 {[%clk 0:04:44.1]}
5... O-O {[%clk 0:04:58.5]} 6. e3 {[%clk 0:04:41.8]} 6... Re8 {[%clk 0:04:58.4]}
7. Be2 {[%clk 0:04:39]} 7... Nc6 {[%clk 0:04:57.9]} 8. O-O {[%clk 0:04:36.3]}
8... Bg4 {[%clk 0:04:57.5]} 9. h3 {[%clk 0:04:30.9]} 9... h5 {[%clk 0:04:56.4]}
10. hxg4 {[%clk 0:04:26.3]} 10... hxg4 {[%clk 0:04:56.3]} 11. Nd4 {[%clk
0:04:24.1]} 11... Ne5 {[%clk 0:04:54.4]} 12. Nf5 {[%clk 0:04:13.9]} 12... Re6
{[%clk 0:04:51.6]} 13. Nxd6 {[%clk 0:04:10.2]} 13... Rxd6 {[%clk 0:04:48.8]} 14.
Qe1 {[%clk 0:04:09.9]} 14... Nh7 {[%clk 0:04:47]} 15. f3 {[%clk 0:04:00.9]}
15... gxf3 {[%clk 0:04:41.5]} 16. Bxf3 {[%clk 0:03:59.5]} 16... Ng5 {[%clk
0:04:39.1]} 17. Bxb7 {[%clk 0:03:55.4]} 17... Rg6 {[%clk 0:04:35.9]} 18. Bxa8
{[%clk 0:03:34.9]} 18... Qxa8 {[%clk 0:04:35.8]} 19. Qe2 {[%clk 0:03:32.9]}
19... Ngf3+ {[%clk 0:04:30.4]} 20. Rxf3 {[%clk 0:03:31.6]} 20... Nxf3+ {[%clk
0:04:30.1]} 21. Kf1 {[%clk 0:03:30]} 21... Nh4 {[%clk 0:04:30]} 22. e4 {[%clk
0:03:27.3]} 22... Rxg2 {[%clk 0:04:20.8]} 23. Qxg2 {[%clk 0:03:24.4]} 23... Nxg2
{[%clk 0:04:17.5]} 24. Kxg2 {[%clk 0:03:24.3]} 24... Qc8 {[%clk 0:04:12.1]} 25.
Bf4 {[%clk 0:03:18.8]} 25... Qg4+ {[%clk 0:04:08.6]} 26. Bg3 {[%clk 0:03:18.3]}
26... f5 {[%clk 0:04:05.1]} 27. exf5 {[%clk 0:03:16.2]} 27... Qxf5 {[%clk
0:04:05]} 28. Rf1 {[%clk 0:03:13.7]} 28... Qxc2+ {[%clk 0:03:58.4]} 29. Rf2
{[%clk 0:03:13.4]} 29... Qd3 {[%clk 0:03:56.3]} 30. Bxc7 {[%clk 0:03:09.9]}
30... Qc4 {[%clk 0:03:50.9]} 31. Bg3 {[%clk 0:03:06.3]} 31... Qc6+ {[%clk
0:03:50.3]} 32. Kg1 {[%clk 0:02:57.9]} 32... a5 {[%clk 0:03:50.2]} 33. a4 {[%clk
0:02:53.9]} 33... Qg6 {[%clk 0:03:46]} 34. Kg2 {[%clk 0:02:51.6]} 34... Qd3
{[%clk 0:03:45.3]} 35. Re2 {[%clk 0:02:46]} 35... Qc4 {[%clk 0:03:43.7]} 36.
Re8+ {[%clk 0:02:40.2]} 36... Kh7 {[%clk 0:03:42.3]} 37. Re5 {[%clk 0:02:38.2]}
37... Qc6+ {[%clk 0:03:38.3]} 38. Kh3 {[%clk 0:02:32.9]} 38... Qh1+ {[%clk
0:03:36.8]} 39. Kg4 {[%clk 0:02:30.7]} 39... Kg6 {[%clk 0:03:36.2]} 40. Rxa5
{[%clk 0:02:27.3]} 40... Qg2 {[%clk 0:03:31.5]} 41. Rg5+ {[%clk 0:02:23]} 41...
Kf7 {[%clk 0:03:30.6]} 42. a5 {[%clk 0:02:20.3]} 42... Qxb2 {[%clk 0:03:28.2]}
43. Ne4 {[%clk 0:02:15.9]} 43... Qe2+ {[%clk 0:03:25.3]} 44. Kf4 {[%clk
0:02:13.6]} 44... Qf1+ {[%clk 0:03:15.6]} 45. Bf2 {[%clk 0:02:12.8]} 45... Qc1+
{[%clk 0:03:14.4]} 46. Kg4 {[%clk 0:02:08.2]} 46... Qc8+ {[%clk 0:03:10.5]} 47.
Rf5+ {[%clk 0:02:05.4]} 47... Kg6 {[%clk 0:03:07.8]} 48. Ng3 {[%clk 0:02:03.2]}
48... Qc4+ {[%clk 0:03:04]} 49. Kh3 {[%clk 0:02:00.5]} 49... Qc8 {[%clk
0:02:58.6]} 50. Kg2 {[%clk 0:01:57.3]} 50... Qa8+ {[%clk 0:02:56.9]} 51. Kg1
{[%clk 0:01:55]} 51... Qc8 {[%clk 0:02:56.8]} 52. Rc5 {[%clk 0:01:48.3]} 52...
Qe6 {[%clk 0:02:53.9]} 53. Rb5 {[%clk 0:01:43.5]} 53... Kh7 {[%clk 0:02:50.9]}
54. Rb6 {[%clk 0:01:40.1]} 54... Qd5 {[%clk 0:02:45.2]} 55. a6 {[%clk
0:01:37.8]} 55... Qd1+ {[%clk 0:02:44.6]} 56. Kg2 {[%clk 0:01:35.8]} 56... Qd5+
{[%clk 0:02:43.4]} 57. Kh3 {[%clk 0:01:28.9]} 57... Qf3 {[%clk 0:02:40.4]} 58.
a7 {[%clk 0:01:22.8]} 58... Qd5 {[%clk 0:02:38.3]} 59. Ra6 {[%clk 0:01:19.7]}
59... Qd7+ {[%clk 0:02:32.8]} 60. Kh2 {[%clk 0:01:15.8]} 60... Qf7 {[%clk
0:02:31.4]} 61. a8=Q {[%clk 0:01:12.2]} 61... Qxf2+ {[%clk 0:02:10]} 62. Kh3
{[%clk 0:01:11.1]} 62... Qd4 {[%clk 0:02:02]} 63. Qe4+ {[%clk 0:01:08.4]} 63...
Kh8 {[%clk 0:02:00]} 64. Qxd4 {[%clk 0:01:07.6]} 64... Kh7 {[%clk 0:01:58.8]}
65. Qh4+ {[%clk 0:01:06.3]} 65... Kg8 {[%clk 0:01:57.9]} 66. Ra8+ {[%clk
0:01:06.2]} 66... Kf7 {[%clk 0:01:57.4]} 67. Qf4+ {[%clk 0:01:04.8]} 67... Kg6
{[%clk 0:01:56.9]} 68. Ra6+ {[%clk 0:01:03.5]} 68... Kh7 {[%clk 0:01:56.8]} 69.
Qh4+ {[%clk 0:01:02.3]} 69... Kg8 {[%clk 0:01:53.5]} 70. Nf5 {[%clk 0:00:56.9]}
70... Kf7 {[%clk 0:01:53.4]} 71. Qe7+ {[%clk 0:00:55.9]} 71... Kg8 {[%clk
0:01:51.4]} 72. Qxg7# {[%clk 0:00:55.8]} 1-0

[Event "Live Chess"]
[Site "Chess.com"]
[Date "2023.05.20"]
[Round "-"]
[White "wot-not"]
[Black "ProfPoisson"]
[Result "1-0"]
[WhiteElo "1522"]
[BlackElo "1136"]
[TimeControl "300"]
[EndTime "14:10:47 PDT"]
[Termination "wot-not won by resignation"]

1. e4 {[%clk 0:04:57.8]} 1... e5 {[%clk 0:04:57.8]} 2. f4 {[%clk 0:04:57.1]}
2... d5 {[%clk 0:04:55.1]} 3. Nf3 {[%clk 0:04:56.7]} 3... dxe4 {[%clk
0:04:47.5]} 4. Nxe5 {[%clk 0:04:55.8]} 4... Bd6 {[%clk 0:04:38.4]} 5. Be2 {[%clk
0:04:38.9]} 5... Bxe5 {[%clk 0:04:35.5]} 6. fxe5 {[%clk 0:04:38]} 6... Nc6
{[%clk 0:04:28.7]} 7. O-O {[%clk 0:04:29.1]} 7... Nxe5 {[%clk 0:04:26.4]} 8. Nc3
{[%clk 0:04:25.3]} 8... Nf6 {[%clk 0:04:19.6]} 9. d4 {[%clk 0:04:13.6]} 9...
exd3 {[%clk 0:04:15.9]} 10. Bxd3 {[%clk 0:04:12.7]} 10... Nxd3 {[%clk
0:04:09.7]} 11. cxd3 {[%clk 0:04:11.9]} 11... O-O {[%clk 0:04:08.2]} 12. Qf3
{[%clk 0:04:01.8]} 12... Ng4 {[%clk 0:03:57.7]} 13. h3 {[%clk 0:03:48.2]} 13...
Qd4+ {[%clk 0:03:51.3]} 14. Kh1 {[%clk 0:03:42.6]} 14... Ne5 {[%clk 0:03:40.9]}
15. Qg3 {[%clk 0:03:26.9]} 15... Nxd3 {[%clk 0:03:32.4]} 16. Bh6 {[%clk
0:02:54.7]} 16... Be6 {[%clk 0:02:55.9]} 17. Rad1 {[%clk 0:02:46.7]} 17... Nf2+
{[%clk 0:02:43.4]} 18. Rxf2 {[%clk 0:02:41.7]} 18... Qxd1+ {[%clk 0:02:26.9]}
19. Nxd1 {[%clk 0:02:39.6]} 1-0

[Event "Live Chess"]
[Site "Chess.com"]
[Date "2023.05.20"]
[Round "-"]
[White "YrrriKharkiv"]
[Black "Oleg_Silin"]
[Result "1-0"]
[WhiteElo "2070"]
[BlackElo "1464"]
[TimeControl "300"]
[EndTime "14:10:49 PDT"]
[Termination "YrrriKharkiv won on time"]

1. d4 {[%clk 0:04:54.5]} 1... Nf6 {[%clk 0:04:57]} 2. c4 {[%clk 0:04:53.6]} 2...
e6 {[%clk 0:04:56.1]} 3. g3 {[%clk 0:04:51.6]} 3... c5 {[%clk 0:04:45.6]} 4. d5
{[%clk 0:04:50]} 4... exd5 {[%clk 0:04:38.5]} 5. cxd5 {[%clk 0:04:49]} 5... d6
{[%clk 0:04:37.7]} 6. Bg2 {[%clk 0:04:46.7]} 6... g6 {[%clk 0:04:29.9]} 7. Nc3
{[%clk 0:04:43.6]} 7... Bg7 {[%clk 0:04:26.3]} 8. Nf3 {[%clk 0:04:43.2]} 8...
O-O {[%clk 0:04:25.2]} 9. O-O {[%clk 0:04:40]} 9... a6 {[%clk 0:04:15.3]} 10. a4
{[%clk 0:04:37.9]} 10... Bg4 {[%clk 0:04:10.3]} 11. Nd2 {[%clk 0:04:35.1]} 11...
Re8 {[%clk 0:04:04.9]} 12. h3 {[%clk 0:04:29]} 12... Bd7 {[%clk 0:04:02.5]} 13.
Nc4 {[%clk 0:04:18.2]} 13... Qc7 {[%clk 0:03:50.7]} 14. a5 {[%clk 0:04:10.4]}
14... Bb5 {[%clk 0:03:46.9]} 15. Nb6 {[%clk 0:04:05.8]} 15... Ra7 {[%clk
0:03:36.2]} 16. Re1 {[%clk 0:03:50.5]} 16... Nbd7 {[%clk 0:03:34.8]} 17. Nxd7
{[%clk 0:03:47]} 17... Bxd7 {[%clk 0:03:19.7]} 18. e4 {[%clk 0:03:43.9]} 18...
b5 {[%clk 0:03:12.2]} 19. axb6 {[%clk 0:03:40.5]} 19... Qxb6 {[%clk 0:03:10.9]}
20. Qc2 {[%clk 0:03:16.6]} 20... Nh5 {[%clk 0:03:06.8]} 21. Be3 {[%clk
0:03:09.2]} 21... Bb5 {[%clk 0:02:51.6]} 22. Qb3 {[%clk 0:02:53.8]} 22... Rb7
{[%clk 0:02:22.9]} 23. Nxb5 {[%clk 0:02:39.9]} 23... Qxb5 {[%clk 0:02:14]} 24.
Qxb5 {[%clk 0:02:37]} 24... axb5 {[%clk 0:02:12.6]} 25. Rab1 {[%clk 0:02:19.5]}
25... b4 {[%clk 0:02:04.8]} 26. b3 {[%clk 0:02:17.3]} 26... Rc8 {[%clk
0:02:02.3]} 27. Bf1 {[%clk 0:02:14]} 27... Re8 {[%clk 0:01:50.7]} 28. Bd2 {[%clk
0:01:58.8]} 28... Bd4 {[%clk 0:01:44.7]} 29. Kg2 {[%clk 0:01:55.1]} 29... Nf6
{[%clk 0:01:33]} 30. Bd3 {[%clk 0:01:53.8]} 30... Ra7 {[%clk 0:01:27.3]} 31. Be3
{[%clk 0:01:41.2]} 31... Bxe3 {[%clk 0:01:16]} 32. Rxe3 {[%clk 0:01:39.4]} 32...
Ra2 {[%clk 0:01:15.3]} 33. Kf3 {[%clk 0:01:20.6]} 33... Nd7 {[%clk 0:01:12.9]}
34. Bb5 {[%clk 0:01:18.5]} 34... Re7 {[%clk 0:01:08.1]} 35. Bxd7 {[%clk
0:01:16.7]} 35... Rxd7 {[%clk 0:01:08]} 36. Rd1 {[%clk 0:01:12.7]} 36... f6
{[%clk 0:00:53.2]} 37. Re2 {[%clk 0:01:03.2]} 37... Rda7 {[%clk 0:00:51.9]} 38.
Rdd2 {[%clk 0:01:00.6]} 38... Rxd2 {[%clk 0:00:48.3]} 39. Rxd2 {[%clk
0:00:59.6]} 39... Ra3 {[%clk 0:00:46.9]} 40. Rb2 {[%clk 0:00:57.6]} 40... Kf7
{[%clk 0:00:46.1]} 41. Ke2 {[%clk 0:00:55.6]} 41... Ke7 {[%clk 0:00:44.8]} 42.
Kd3 {[%clk 0:00:50.9]} 42... Ra1 {[%clk 0:00:32]} 43. h4 {[%clk 0:00:32.4]}
43... f5 {[%clk 0:00:27.2]} 44. exf5 {[%clk 0:00:30.8]} 44... gxf5 {[%clk
0:00:27.1]} 45. Re2+ {[%clk 0:00:27.5]} 45... Kf6 {[%clk 0:00:26.3]} 46. Re7
{[%clk 0:00:26.5]} 46... Rd1+ {[%clk 0:00:22.5]} 47. Ke2 {[%clk 0:00:24.4]}
47... Rb1 {[%clk 0:00:19.6]} 48. Re6+ {[%clk 0:00:22.9]} 48... Kf7 {[%clk
0:00:18.4]} 49. Rxd6 {[%clk 0:00:22.6]} 49... Rxb3 {[%clk 0:00:17]} 50. Rc6
{[%clk 0:00:21.8]} 50... Rc3 {[%clk 0:00:13.8]} 51. Rc7+ {[%clk 0:00:19.3]}
51... Ke8 {[%clk 0:00:11.5]} 52. Rxh7 {[%clk 0:00:18.8]} 52... b3 {[%clk
0:00:10.7]} 53. Rb7 {[%clk 0:00:17.3]} 53... Rc2+ {[%clk 0:00:07.3]} 54. Kd1
{[%clk 0:00:16.2]} 54... c4 {[%clk 0:00:06.6]} 55. d6 {[%clk 0:00:15.1]} 55...
Rc3 {[%clk 0:00:02.8]} 56. h5 {[%clk 0:00:13.9]} 56... Rd3+ {[%clk 0:00:01]} 57.
Ke2 {[%clk 0:00:12.3]} 57... Rxd6 {[%clk 0:00:00.9]} 58. Kf3 {[%clk 0:00:10.6]}
1-0

[Event "Live Chess"]
[Site "Chess.com"]
[Date "2023.05.20"]
[Round "-"]
[White "ExIsambard"]
[Black "Pandreq"]
[Result "1-0"]
[WhiteElo "1976"]
[BlackElo "1255"]
[TimeControl "300"]
[EndTime "14:10:51 PDT"]
[Termination "ExIsambard won by resignation"]

1. d4 {[%clk 0:04:59.2]} 1... d5 {[%clk 0:04:58]} 2. Nf3 {[%clk 0:04:58.4]} 2...
c6 {[%clk 0:04:57.5]} 3. Bg5 {[%clk 0:04:57.7]} 3... Nf6 {[%clk 0:04:56.3]} 4.
e3 {[%clk 0:04:56.9]} 4... e6 {[%clk 0:04:55.5]} 5. Bd3 {[%clk 0:04:55.9]} 5...
Be7 {[%clk 0:04:54.1]} 6. Nbd2 {[%clk 0:04:55.3]} 6... h6 {[%clk 0:04:52.7]} 7.
Bf4 {[%clk 0:04:53.9]} 7... O-O {[%clk 0:04:50.2]} 8. g4 {[%clk 0:04:49.2]} 8...
Nbd7 {[%clk 0:04:45.7]} 9. Qe2 {[%clk 0:04:47.7]} 9... c5 {[%clk 0:04:37.2]} 10.
c3 {[%clk 0:04:46.2]} 10... c4 {[%clk 0:04:34.7]} 11. Bc2 {[%clk 0:04:45.4]}
11... Nxg4 {[%clk 0:04:29.4]} 12. Rg1 {[%clk 0:04:43.8]} 12... h5 {[%clk
0:04:18.1]} 13. h3 {[%clk 0:04:42.9]} 13... Ngf6 {[%clk 0:04:08.9]} 14. Bh6
{[%clk 0:04:40.7]} 14... g6 {[%clk 0:03:57.5]} 15. Bxf8 {[%clk 0:04:39.1]} 15...
Bxf8 {[%clk 0:03:57.4]} 16. Nh4 {[%clk 0:04:34.8]} 16... Kh7 {[%clk 0:03:53.5]}
17. Ndf3 {[%clk 0:04:19.4]} 17... b5 {[%clk 0:03:47.4]} 18. Ng5+ {[%clk
0:04:17.2]} 18... Kg7 {[%clk 0:03:39.5]} 19. Nxg6 {[%clk 0:04:09.5]} 19... fxg6
{[%clk 0:03:36.8]} 20. Nxe6+ {[%clk 0:04:08.3]} 1-0